bitfinex-derivatives/quotes_SOLF0:USTF0_20241227
["timestamp","ask_amount","ask_price","bid_price","bid_amount"]
[1735313047537,2.2766,185.08,184.91,37.58066035]
[1735313047731,2.2766,185.08,184.92,2.3379]
[1735313048131,2.705,185.07,184.98,2.7062]
[1735313048330,2.705,185.07,184.99,4.46]
[1735313048838,2.7051,185.06,184.99,4.46]
[1735313049034,2.7051,185.06,185.0,4.46]
[1735313049236,2.2766,185.08,185.0,4.46]
[1735313049437,2.7054,185.04,185.0,4.46]
[1735313050228,2.2766,185.08,184.92,2.3379]
[1735313050540,32.89156035,185.06,184.93,4.46]
[1735313050929,2.7057,185.02,184.94,2.7068]
[1735313051134,2.2766,185.08,184.93,4.46]
[1735313051336,2.2766,185.08,184.94,4.46]
[1735313051535,2.7051,185.06,184.97,2.7063]
[1735313051733,2.2766,185.08,184.95,32.89156035]
[1735313052036,2.2552,185.11,184.95,32.89156035]
[1735313053134,2.2552,185.11,184.98,32.89156035]
[1735313053336,32.89156035,185.16,184.98,32.89156035]
[1735313053931,32.89156035,185.13,185.01,2.7057]
[1735313054130,32.89156035,185.13,185.02,4.46]
[1735313054640,33.10929035,185.16,185.02,4.46]
[1735313054838,0.21773,185.16,185.04,32.89156035]
[1735313055039,2.704,185.14,185.06,2.705]
[1735313055240,33.10929035,185.16,185.03,6.9287]
[1735313055539,33.10929035,185.16,185.07,4.46]
[1735313056541,2.7041,185.13,185.07,4.46]
[1735313057237,2.7044,185.11,185.07,4.46]
[1735313057434,33.10929035,185.16,185.07,4.46]
[1735313057636,0.21773,185.16,185.07,4.46]
[1735313057933,0.21773,185.16,185.04,32.89156035]
[1735313058130,0.21773,185.16,185.05,4.44]
[1735313058336,2.7043,185.12,185.05,2.7051]
[1735313058540,33.10929035,185.16,185.06,4.44]
[1735313058741,2.3735,185.15,185.06,4.44]
[1735313058939,2.7046,185.1,185.06,4.44]
[1735313059142,32.89156035,185.13,184.98,32.89156035]
[1735313059440,32.89156035,185.13,184.99,4.44]
[1735313059835,32.89156035,185.1,184.95,32.89156035]
[1735313060034,32.89156035,185.1,184.96,4.44]
[1735313060431,32.89156035,185.1,184.97,2.7063]
[1735313060632,32.89156035,185.07,184.94,2.3936]
[1735313060836,4.7485,185.06,184.95,4.44]
[1735313061031,4.7485,185.06,184.95,7.1466]
[1735313061237,4.7485,185.06,184.95,4.44]
[1735313061436,4.7485,185.06,184.93,56.22]
[1735313061638,4.7485,185.06,184.94,4.44]
[1735313062538,4.7485,185.06,184.95,2.7066]
[1735313062845,4.7485,185.06,184.94,4.44]
[1735313063041,4.7485,185.06,184.95,4.44]
[1735313063241,2.7056,185.03,184.95,4.44]
[1735313063440,4.7485,185.06,184.95,4.44]
[1735313063744,23.97841798,185.09,184.95,37.33156035]
[1735313064245,21.69911798,185.09,185.01,20.20254017]
[1735313064538,21.69911798,185.09,185.02,11.4278]
[1735313064738,21.69911798,185.13,185.02,11.4278]
[1735313065739,24.62054798,185.16,185.09,2.7046]
[1735313065939,21.91684798,185.16,185.1,4.44]
[1735313066542,0.21773,185.16,185.1,4.44]
[1735313066941,2.7044,185.11,185.02,6.9878]
[1735313067146,0.21773,185.16,185.03,4.44]
[1735313067341,0.21773,185.16,185.04,4.44]
[1735313067543,2.7045,185.1,185.04,7.1454]
[1735313067746,21.69911798,185.15,185.04,24.64254017]
[1735313068249,35.7236512,185.15,185.04,4.44]
[1735313068545,35.7236512,185.15,185.04,24.64254017]
[1735313069044,35.7236512,185.15,185.04,4.44]
[1735313069245,2.7047,185.09,185.04,4.44]
[1735313069437,55.92619137,185.15,185.03,4.44]
[1735313069642,6.8716,185.14,185.03,4.44]
[1735313070139,2.7054,185.04,185.03,4.44]
[1735313070341,20.20254017,185.12,185.0,4.44]
[1735313070539,2.7056,185.03,184.96,2.3993]
[1735313070747,2.7056,185.03,184.97,4.44]
[1735313070948,2.7057,185.02,184.97,4.44]
[1735313071141,20.20254017,185.09,184.97,4.44]
[1735313072245,2.7055,185.04,184.97,4.44]
[1735313072638,21.69911798,185.07,184.97,4.44]
[1735313072840,2.7054,185.05,184.99,2.7061]
[1735313073045,21.69911798,185.07,184.99,2.7061]
[1735313073247,2.7052,185.06,185.0,2.7059]
[1735313073547,35.34913464,185.11,185.0,2.7059]
[1735313073746,35.34913464,185.11,184.97,4.44]
[1735313073946,35.34913464,185.11,185.0,2.706]
[1735313074137,21.69911798,185.1,185.0,2.706]
[1735313075042,2.7049,185.07,185.0,2.706]
[1735313075343,21.69911798,185.09,184.92,20.20254017]
[1735313075544,2.7061,184.99,184.92,20.20254017]
[1735313075748,20.20254017,185.07,184.94,2.7068]
[1735313075948,20.20254017,185.07,184.93,4.44]
[1735313075949,26.13911798,185.09,184.93,4.44]
[1735313076150,78.59340082,185.1,184.95,20.20254017]
[1735313076151,24.40441798,185.05,184.95,20.20254017]
[1735313076449,21.69911798,185.05,184.93,4.44]
[1735313076846,21.69911798,185.07,184.96,2.7065]
[1735313077046,21.69911798,185.07,184.95,20.20254017]
[1735313077847,21.69911798,185.09,184.93,4.44]
[1735313078151,21.69911798,185.09,184.93,24.64254017]
[1735313078350,2.7058,185.01,184.96,2.7065]
[1735313078551,21.69911798,185.09,184.93,24.64254017]
[1735313078952,21.69911798,185.07,184.95,2.7067]
[1735313079347,2.7061,185.0,184.94,2.7068]
[1735313079647,41.90165815,185.07,184.91,4.44]
[1735313079648,20.20254017,185.04,184.91,4.44]
[1735313079854,6.8818,185.03,184.91,4.44]
[1735313081454,21.69911798,185.0,184.95,2.7067]
[1735313082449,2.706,185.0,184.95,2.7067]
[1735313086956,2.7058,185.02,184.93,20.20254017]
[1735313087455,21.69911798,185.05,184.93,20.20254017]
[1735313087658,73.64229738,185.06,184.93,20.20254017]
[1735313087659,2.7058,185.01,184.96,2.7064]
[1735313087860,2.7058,185.01,184.96,7.0064]
[1735313088359,2.7057,185.02,184.97,2.7063]
[1735313088560,21.69911798,185.06,184.97,2.7063]
[1735313088756,21.69911798,185.08,184.97,2.7063]
[1735313088956,2.7058,185.01,184.96,7.0065]
[1735313089157,21.69911798,185.08,184.96,4.3]
[1735313089352,21.69911798,185.08,184.96,24.50254017]
[1735313089554,20.20254017,185.06,184.92,4.3]
[1735313089960,2.7067,184.95,184.91,2.7072]
[1735313090264,2.7067,184.95,184.91,4.3]
[1735313090554,20.20254017,185.03,184.91,4.3]
[1735313091359,41.90165815,185.03,184.73,56.24]
[1735313091554,20.20254017,184.99,184.83,20.20254017]
[1735313091753,11.1887,184.98,184.83,4.3]
[1735313091950,20.20254017,184.96,184.82,4.3]
[1735313092969,2.7074,184.9,184.85,2.7081]
[1735313093151,8.0,184.91,184.65,59.07838604]
[1735313093352,20.20254017,184.84,184.66,20.20254017]
[1735313093560,9.0653,184.83,184.66,20.20254017]
[1735313093768,2.7096,184.75,184.68,2.7106]
[1735313093955,9.0653,184.83,184.66,20.20254017]
[1735313094254,2.7092,184.78,184.66,22.91344017]
[1735313094455,10.14737542,184.83,184.66,22.91344017]
[1735313094654,20.20254017,184.79,184.66,2.7109]
[1735313094859,20.20254017,184.79,184.65,4.3]
[1735313095058,20.20254017,184.79,184.64,2.2522]
[1735313095459,2.7104,184.7,184.64,2.2522]
[1735313095666,2.7104,184.7,184.63,4.6085]
[1735313096057,2.7106,184.69,184.6,4.964]
[1735313096257,24.50254017,184.73,184.6,2.2522]
[1735313096768,2.7108,184.68,184.6,4.964]
[1735313097062,2.3684,184.72,184.6,2.2522]
[1735313097968,20.20254017,184.76,184.61,4.3]
[1735313098260,24.50254017,184.79,184.61,24.50254017]
[1735313098455,2.7105,184.7,184.61,7.0116]
[1735313098658,2.7105,184.7,184.61,4.3]
[1735313099266,2.7103,184.71,184.63,2.7114]
[1735313099467,3.6196,184.82,184.61,4.3]
[1735313099468,20.20254017,184.76,184.61,4.3]
[1735313099663,20.20254017,184.79,184.61,4.3]
[1735313099864,2.7094,184.77,184.63,20.20254017]
[1735313100067,23.82214017,184.82,184.66,20.20254017]
[1735313100258,23.82214017,184.82,184.5,36.43254017]
[1735313100259,20.20254017,184.75,184.69,2.7105]
[1735313100465,20.20254017,184.75,184.59,20.20254017]
[1735313100669,20.20254017,184.78,184.62,20.20254017]
[1735313100866,20.20254017,184.78,184.63,11.3366]
[1735313101265,20.20254017,184.81,184.63,11.3366]
[1735313101461,2.7094,184.77,184.7,2.7103]
[1735313101670,20.20254017,184.81,184.69,4.3]
[1735313101870,20.20254017,184.81,184.69,4.32]
[1735313102171,2.7097,184.75,184.69,4.32]
[1735313102366,20.20254017,184.81,184.69,4.32]
[1735313102769,2.7092,184.79,184.72,2.71]
[1735313103472,20.20254017,184.81,184.69,4.32]
[1735313103673,20.20254017,184.81,184.68,4.32]
[1735313104666,2.7089,184.81,184.73,2.7099]
[1735313104865,2.4173,184.83,184.68,4.32]
[1735313105071,2.4173,184.83,184.65,20.20254017]
[1735313105072,20.20254017,184.81,184.67,4.32]
[1735313105369,2.29,184.8,184.67,4.32]
[1735313105763,2.29,184.8,184.66,2.7109]
[1735313105764,2.7101,184.73,184.66,2.7109]
[1735313105968,20.20254017,184.77,184.64,2.3819]
[1735313106169,20.20254017,184.77,184.65,2.266]
[1735313106567,22.49254017,184.8,184.66,4.32]
[1735313107368,2.7104,184.7,184.65,2.266]
[1735313107564,20.20254017,184.77,184.65,2.266]
[1735313107964,2.7099,184.74,184.66,2.7108]
[1735313108168,20.20254017,184.77,184.65,2.266]
[1735313108570,22.49254017,184.8,184.65,2.266]
[1735313109065,2.7094,184.77,184.7,2.7102]
[1735313109774,2.7094,184.77,184.69,4.32]
[1735313109775,2.7096,184.76,184.69,7.0305]
[1735313110170,2.4173,184.83,184.69,4.32]
[1735313110375,20.20254017,184.86,184.7,22.50804017]
[1735313110772,2.7086,184.82,184.7,22.50804017]
[1735313110965,20.20254017,184.86,184.7,22.50804017]
[1735313111169,20.20254017,184.86,184.76,2.7095]
[1735313111170,2.7086,184.83,184.76,2.7095]
[1735313111365,20.20254017,184.89,184.76,4.32]
[1735313111571,0.30155,184.9,184.79,20.20254017]
[1735313111770,0.30155,184.9,184.82,20.20254017]
[1735313111972,0.30155,184.9,184.83,4.32]
[1735313112272,0.30155,184.9,184.81,4.32]
[1735313112571,20.20254017,184.89,184.81,4.32]
[1735313112776,2.7085,184.83,184.81,4.32]
[1735313112969,2.7085,184.83,184.77,4.5521]
[1735313113167,2.7085,184.83,184.77,8.8721]
[1735313113370,2.7083,184.85,184.77,11.5814]
[1735313113570,2.7083,184.85,184.77,8.8721]
[1735313113775,20.20254017,184.89,184.77,6.5753]
[1735313113967,2.7087,184.82,184.77,2.2553]
[1735313114168,20.20254017,184.89,184.77,2.2553]
[1735313114677,2.7079,184.88,184.81,2.7087]
[1735313114878,0.30155,184.9,184.81,4.32]
[1735313115271,2.7077,184.89,184.81,4.32]
[1735313115472,0.30155,184.9,184.81,4.32]
[1735313116469,3.00915,184.9,184.82,2.7086]
[1735313116674,0.30155,184.9,184.82,2.7086]
[1735313117474,2.7076,184.89,184.82,2.7086]
[1735313118183,2.7077,184.88,184.82,2.7086]
[1735313118375,0.30155,184.9,184.81,4.32]
[1735313118575,0.30155,184.9,184.78,4.5268]
[1735313118878,0.30155,184.9,184.79,7.229]
[1735313119076,0.30155,184.9,184.79,4.52]
[1735313119677,2.7081,184.86,184.79,4.52]
[1735313119881,0.30155,184.9,184.79,4.52]
[1735313120180,2.7079,184.88,184.79,4.52]
[1735313120367,0.30155,184.9,184.8,20.20254017]
[1735313120577,0.30155,184.9,184.85,2.708]
[1735313120774,0.30155,184.9,184.83,20.20254017]
[1735313121077,0.30155,184.9,184.88,2.7076]
[1735313121477,0.30155,184.9,184.84,4.52]
[1735313122074,237.59450971,185.13,184.92,2.707]
[1735313122377,29.94381028,185.04,184.92,4.52]
[1735313122676,2.706,185.0,184.92,4.52]
[1735313123082,2.4292,185.04,184.92,24.72254017]
[1735313123271,2.7058,185.02,184.92,24.72254017]
[1735313123477,7.31207011,185.05,184.92,24.72254017]
[1735313123680,2.7058,185.02,184.93,2.707]
[1735313123874,78.59340082,185.07,184.92,24.72254017]
[1735313123875,20.20254017,185.07,184.92,24.72254017]
[1735313124385,20.20254017,185.07,184.92,20.20254017]
[1735313124685,20.20254017,185.07,184.93,4.52]
[1735313124881,2.7055,185.03,184.98,2.7063]
[1735313125076,20.20254017,185.07,184.93,4.52]
[1735313125274,20.20254017,185.07,184.94,4.52]
[1735313126077,2.407,185.09,184.9,4.6887]
[1735313126282,20.20254017,184.98,184.9,4.6887]
[1735313126477,20.20254017,184.98,184.9,2.3526]
[1735313126678,2.707,184.94,184.9,2.3526]
[1735313126983,20.20254017,184.95,184.86,4.52]
[1735313127177,20.20254017,184.95,184.8,2.7088]
[1735313127178,2.708,184.87,184.8,2.7088]
[1735313127383,20.20254017,184.92,184.8,4.52]
[1735313127585,20.20254017,184.95,184.8,4.52]
[1735313128079,2.7077,184.89,184.8,4.52]
[1735313128280,2.7077,184.89,184.8,24.72254017]
[1735313128484,2.7074,184.91,184.85,2.7082]
[1735313128777,2.7074,184.91,184.8,24.72254017]
[1735313128979,2.4174,184.97,184.83,20.20254017]
[1735313129179,2.7071,184.93,184.83,20.20254017]
[1735313130279,2.4174,184.97,184.83,20.20254017]
[1735313130482,2.7069,184.95,184.83,20.20254017]
[1735313130682,22.52214017,185.01,184.86,20.20254017]
[1735313130883,22.52214017,185.01,184.79,4.48]
[1735313130884,2.7063,184.98,184.89,20.20254017]
[1735313131184,3.8564,185.03,184.9,9.1803]
[1735313131374,2.706,185.0,184.9,9.1803]
[1735313131581,3.8564,185.03,184.9,9.1803]
[1735313132379,2.7059,185.01,184.95,2.7067]
[1735313132580,3.8564,185.03,184.9,9.1803]
[1735313132990,2.7061,185.0,184.93,2.707]
[1735313133289,20.20254017,185.04,184.9,9.1803]
[1735313133782,2.7061,185.0,184.9,9.1803]
[1735313133980,2.3877,185.08,184.95,20.20254017]
[1735313134382,2.7055,185.04,184.99,2.7061]
[1735313134583,2.7055,185.04,184.98,4.52]
[1735313134984,2.7056,185.03,184.98,7.2263]
[1735313135184,20.20254017,185.07,184.98,4.52]
[1735313135384,20.20254017,185.04,184.91,4.52]
[1735313135581,2.7068,184.95,184.91,4.52]
[1735313135791,20.20254017,185.01,184.91,4.52]
[1735313135986,2.7071,184.93,184.88,2.7077]
[1735313136287,20.20254017,184.95,184.81,4.52]
[1735313137183,2.7079,184.87,184.81,4.52]
[1735313137679,20.20254017,184.95,184.82,2.7086]
[1735313138482,2.7079,184.87,184.81,4.52]
[1735313138687,20.20254017,184.89,184.67,56.26]
[1735313138981,20.20254017,184.86,184.71,20.20254017]
[1735313139186,20.20254017,184.86,184.74,2.7097]
[1735313139988,20.20254017,184.86,184.76,2.7094]
[1735313140389,2.7086,184.83,184.74,4.52]
[1735313140784,20.20254017,184.86,184.75,2.7095]
[1735313140989,2.7086,184.82,184.74,4.52]
[1735313141190,20.20254017,184.86,184.74,4.52]
[1735313141391,20.20254017,184.89,184.77,2.7094]
[1735313141693,27.51461028,184.95,184.8,20.20254017]
[1735313141988,87.40204874,184.97,184.86,2.708]
[1735313142190,2.7072,184.92,184.81,11.4895]
[1735313142490,29.01118809,184.97,184.81,11.4895]
[1735313142691,29.01118809,184.97,184.85,2.7082]
[1735313143186,22.60344017,184.98,184.85,2.7082]
[1735313144092,2.7073,184.91,184.85,2.7082]
[1735313144294,22.60344017,184.98,184.87,2.7079]
[1735313144488,2.7071,184.93,184.87,2.7079]
[1735313144892,2.7066,184.97,184.88,4.52]
[1735313145097,49.21372826,185.01,184.89,4.52]
[1735313145488,23.99524017,185.04,184.89,4.52]
[1735313145489,2.7071,184.93,184.89,4.52]
[1735313145887,20.20254017,184.95,184.84,4.52]
[1735313146187,20.20254017,184.92,184.81,4.7352]
[1735313146387,20.20254017,184.92,184.81,2.2882]
[1735313146593,2.7081,184.86,184.8,2.7089]
[1735313146794,20.20254017,184.92,184.79,4.52]
[1735313147392,20.20254017,184.92,184.79,7.2291]
[1735313148398,20.20254017,184.92,184.79,4.52]
[1735313148699,2.7083,184.85,184.79,4.52]
[1735313148892,20.20254017,184.89,184.77,2.7092]
[1735313149088,20.20254017,184.89,184.78,4.42]
[1735313150598,2.7084,184.84,184.78,7.1291]
[1735313150997,7.31207011,184.91,184.78,4.42]
[1735313151495,20.20254017,184.92,184.78,4.42]
[1735313151697,31.42958809,184.93,184.79,2.3]
[1735313151897,2.7076,184.89,184.84,2.7083]
[1735313152294,31.42958809,184.93,184.83,4.42]
[1735313152498,2.708,184.87,184.83,4.42]
[1735313152691,31.42958809,184.93,184.83,4.42]
[1735313152692,2.4184,184.93,184.83,4.42]
[1735313152891,20.20254017,184.92,184.83,4.42]
[1735313153098,2.7086,184.82,184.78,4.42]
[1735313153695,24.62254017,184.92,184.78,4.42]
[1735313154101,20.20254017,184.92,184.78,4.42]
[1735313154302,2.708,184.87,184.81,2.7088]
[1735313154501,20.20254017,184.92,184.78,4.42]
[1735313154898,2.7079,184.87,184.82,2.7086]
[1735313156398,20.20254017,184.89,184.78,4.42]
[1735313157001,2.7086,184.82,184.78,4.42]
[1735313157802,2.7084,184.84,184.78,7.1291]
[1735313158204,2.7084,184.84,184.78,4.42]
[1735313158596,20.20254017,184.89,184.78,4.42]
[1735313158995,20.20254017,184.92,184.78,4.42]
[1735313159598,2.4184,184.93,184.79,20.20254017]
[1735313159802,2.4184,184.93,184.83,2.7083]
[1735313160404,2.7077,184.89,184.84,2.7083]
[1735313160707,2.4184,184.93,184.84,4.42]
[1735313161205,20.20254017,184.92,184.84,4.42]
[1735313161610,29.01118809,184.98,184.84,4.42]
[1735313161809,29.01118809,184.98,184.85,20.20254017]
[1735313162012,7.31207011,184.97,184.85,22.60474017]
[1735313162507,7.31207011,184.97,184.86,4.42]
[1735313162705,2.7076,184.89,184.86,4.42]
[1735313163004,7.31207011,184.97,184.86,4.42]
[1735313163214,2.7076,184.89,184.86,4.42]
[1735313164007,2.7075,184.9,184.86,4.42]
[1735313164210,2.7075,184.9,184.83,4.42]
[1735313164407,20.20254017,184.98,184.83,4.42]
[1735313164614,7.31207011,184.99,184.85,20.20254017]
[1735313164914,7.31207011,184.99,184.84,2.2434]
[1735313164915,7.31207011,184.98,184.91,2.7073]
[1735313165101,7.31207011,184.98,184.92,4.42]
[1735313165807,9.75437011,185.03,184.92,4.42]
[1735313166206,2.7064,184.98,184.92,4.42]
[1735313166711,2.7064,184.98,184.93,2.707]
[1735313167108,2.7067,184.95,184.92,4.42]
[1735313167309,20.20254017,185.01,184.92,4.42]
[1735313167909,2.4423,185.03,184.92,4.42]
[1735313168503,2.706,185.0,184.93,2.7069]
[1735313168708,2.4423,185.03,184.93,2.7069]
[1735313168908,2.4423,185.03,184.92,4.42]
[1735313169303,29.01118809,185.05,184.92,4.42]
[1735313169711,2.7056,185.03,184.97,2.7064]
[1735313170106,2.3089,185.06,184.91,20.20254017]
[1735313170312,2.7054,185.04,184.98,2.7061]
[1735313170512,2.7054,185.04,184.98,4.42]
[1735313171016,7.31207011,185.07,184.98,4.42]
[1735313171205,58.39086065,185.09,184.99,2.2189]
[1735313171206,7.31207011,185.09,184.99,2.2189]
[1735313171406,2.7056,185.03,184.99,2.2189]
[1735313171714,7.31207011,185.09,184.99,2.2189]
[1735313172107,2.7053,185.05,185.0,4.42]
[1735313172308,7.31207011,185.09,185.0,4.42]
[1735313172507,87.31273163,185.15,185.04,20.20254017]
[1735313173111,87.31273163,185.15,185.01,56.26]
[1735313173112,20.20254017,185.14,185.03,4.42]
[1735313173309,20.20254017,185.11,184.99,2.2189]
[1735313173508,20.20254017,185.11,185.0,4.42]
[1735313173509,2.3359,185.1,185.0,4.42]
[1735313174312,2.7047,185.1,185.02,2.7056]
[1735313174616,1.5418,185.13,185.0,4.42]
[1735313175014,1.5418,185.13,185.0,7.126]
[1735313175717,1.5418,185.13,185.0,4.42]
[1735313175913,20.20254017,185.14,185.0,4.42]
[1735313176118,2.704,185.15,185.02,20.20254017]
[1735313176314,29.28440612,185.17,185.06,2.7051]
[1735313176515,9.66720153,185.18,185.07,4.42]
[1735313176818,20.20254017,185.17,185.07,4.42]
[1735313177016,20.20254017,185.14,185.07,4.42]
[1735313177322,2.7045,185.11,185.07,4.42]
[1735313177513,20.20254017,185.14,185.07,4.42]
[1735313177913,20.20254017,185.11,185.02,4.42]
[1735313178114,20.20254017,185.11,184.99,4.9251]
[1735313178310,2.705,185.08,184.99,6.5589]
[1735313178517,20.20254017,185.11,184.99,6.5589]
[1735313178716,20.20254017,185.11,185.0,2.706]
[1735313179120,20.20254017,185.14,184.99,6.5589]
[1735313179321,20.20254017,185.14,185.02,2.7057]
[1735313179521,20.20254017,185.14,184.99,6.5589]
[1735313179721,2.7047,185.1,184.99,6.5589]
[1735313179922,20.20254017,185.14,185.02,2.7057]
[1735313180126,20.20254017,185.11,184.99,6.5589]
[1735313180423,20.20254017,185.11,184.99,2.2189]
[1735313180622,20.20254017,185.08,184.97,4.34]
[1735313181019,20.20254017,185.08,184.94,2.4362]
[1735313181222,20.20254017,185.05,184.93,4.34]
[1735313181414,3.8966,185.07,184.9,4.34]
[1735313181415,20.20254017,185.02,184.9,4.34]
[1735313181614,20.20254017,185.02,184.87,4.6889]
[1735313181615,20.20254017,184.99,184.87,4.6889]
[1735313182126,20.20254017,185.04,184.94,2.7068]
[1735313182425,20.20254017,185.04,184.92,4.34]
[1735313182928,20.20254017,184.97,184.81,20.20254017]
[1735313183121,2.7075,184.9,184.82,4.34]
[1735313183329,2.3545,184.96,184.82,4.34]
[1735313183726,2.3545,184.96,184.85,2.7082]
[1735313184025,2.3545,184.96,184.82,4.34]
[1735313184223,2.7072,184.93,184.87,2.7079]
[1735313184424,2.3545,184.96,184.82,4.34]
[1735313184826,2.3468,184.99,184.84,20.20254017]
[1735313185629,2.707,184.94,184.88,2.7078]
[1735313185831,3.8853,185.03,184.89,4.34]
[1735313186026,2.2413,185.03,184.9,20.20254017]
[1735313186231,2.3419,185.05,184.9,25.04074017]
[1735313186531,2.3419,185.05,184.91,2.3441]
[1735313187231,2.7059,185.02,184.91,2.3441]
[1735313187629,7.32110153,185.12,184.91,2.3441]
[1735313187630,7.32110153,185.12,184.97,20.20254017]
[1735313187833,7.32110153,185.12,185.0,20.20254017]
[1735313188034,7.32110153,185.12,185.01,7.2154]
[1735313188236,2.7047,185.09,185.01,7.2154]
[1735313188435,7.32110153,185.12,185.01,7.2154]
[1735313188635,20.20254017,185.09,184.8,61.6777]
[1735313188836,20.20254017,185.09,184.97,2.7064]
[1735313189034,20.20254017,185.09,184.94,4.34]
[1735313189234,20.20254017,185.13,184.94,4.34]
[1735313189235,20.20254017,185.06,184.94,4.34]
[1735313189438,2.7063,184.98,184.94,4.34]
[1735313189640,1.6482,185.05,184.94,4.34]
[1735313189937,2.7062,184.99,184.94,4.34]
[1735313190337,1.6482,185.05,184.94,4.34]
[1735313191843,2.7062,184.99,184.94,4.34]
[1735313192038,1.6482,185.05,184.94,4.34]
[1735313192440,1.6482,185.05,184.89,6.5839]
[1735313192441,20.20254017,185.03,184.89,6.5839]
[1735313192742,20.20254017,184.97,184.82,20.20254017]
[1735313193043,20.20254017,184.94,184.8,60.6]
[1735313193231,20.20254017,184.94,184.8,7.0489]
[1735313193435,20.20254017,184.94,184.8,4.34]
[1735313193743,1.6467,184.95,184.83,2.7084]
[1735313193943,2.7074,184.91,184.8,4.34]
[1735313194444,2.7072,184.92,184.85,2.7082]
[1735313194640,8.9177,184.96,184.82,20.20254017]
[1735313194842,4.5777,184.96,184.83,6.6679]
[1735313195138,2.7071,184.93,184.83,6.6679]
[1735313195442,4.5777,184.96,184.83,6.6679]
[1735313195843,2.7069,184.94,184.86,2.7079]
[1735313196045,2.3161,184.96,184.83,6.6679]
[1735313196339,20.20254017,185.0,184.85,20.20254017]
[1735313196538,2.7066,184.96,184.9,2.7074]
[1735313196841,20.20254017,185.0,184.85,4.34]
[1735313197245,20.20254017,185.0,184.85,24.54254017]
[1735313197841,20.20254017,184.97,184.85,7.0481]
[1735313198039,20.20254017,184.97,184.85,4.34]
[1735313198745,20.20254017,184.94,184.79,20.20254017]
[1735313198945,20.20254017,184.94,184.78,4.691]
[1735313199149,2.7076,184.9,184.81,2.7087]
[1735313199337,20.20254017,184.94,184.79,4.34]
[1735313199538,20.20254017,184.94,184.79,6.7566]
[1735313200149,2.3794,184.93,184.79,6.7566]
[1735313200542,20.20254017,184.91,184.79,2.4166]
[1735313200739,20.20254017,184.88,184.78,2.2439]
[1735313200939,20.20254017,184.88,184.69,4.5832]
[1735313201144,2.7094,184.78,184.71,2.7103]
[1735313201641,24.54254017,184.85,184.72,2.7101]
[1735313201642,2.7091,184.79,184.72,2.7101]
[1735313201846,2.3794,184.84,184.7,4.34]
[1735313202046,20.20254017,184.88,184.7,4.34]
[1735313202348,4.34,184.9,184.7,4.34]
[1735313202949,2.7084,184.84,184.76,2.7095]
[1735313203142,2.7084,184.84,184.76,4.34]
[1735313203343,2.7081,184.86,184.79,2.7091]
[1735313203643,2.4766,184.91,184.76,24.54254017]
[1735313203844,2.4766,184.91,184.79,20.20254017]
[1735313204139,2.4766,184.91,184.8,6.9685]
[1735313204344,2.7075,184.91,184.8,6.9685]
[1735313204545,2.3453,184.92,184.8,6.9685]
[1735313204748,4.1285,184.96,184.8,6.9685]
[1735313204749,2.7074,184.91,184.84,2.7084]
[1735313204946,2.7074,184.91,184.83,4.34]
[1735313206247,4.1285,184.96,184.83,4.34]
[1735313206248,2.7077,184.89,184.83,2.7084]
[1735313206443,32.89780168,184.95,184.82,4.34]
[1735313206643,32.89780168,184.95,184.8,6.9685]
[1735313206843,32.89780168,184.95,184.8,11.3085]
[1735313207250,32.89780168,184.89,184.74,32.89780168]
[1735313207445,32.89780168,184.89,184.75,4.34]
[1735313207647,32.89780168,184.86,184.72,4.34]
[1735313208042,32.89780168,184.86,184.71,32.89780168]
[1735313208351,2.249,184.85,184.72,4.36]